[Event "18th Brasschaat Open 2018"]
[Site "Brasschaat"]
[Date "2018.08.24"]
[Round "7"]
[White "Grochal, Joey"]
[Black "Boudry, William"]
[Result "1/2-1/2"]
[ECO "D37"]
[WhiteElo "2300"]
[BlackElo "2044"]
[Annotator "NA"]
[PlyCount "129"]
[EventDate "2018.08.18"]
[EventType "swiss"]
[EventCountry "BEL"]
[SourceTitle "playchess.com"]
[Source "ChessBase"]
[SourceQuality "1"]
[TimeControl "40/5400+30:1800+30"]

1. d4 {[%emt 0:00:00]} d5 {[%emt 0:00:06]} 2. c4 {[%emt 0:00:00]} e6 {[%emt 0:00:07]} 3. Nc3 {[%emt 0:00:00]} Be7 {[%emt 0:00:07]} 4. Nf3 {[%emt 0:00:00]} Nf6 {[%emt 0:00:12]} 5. Bf4 {[%emt 0:00:42]} O-O {[%emt 0:00:30]} 6. e3 {[%emt 0:00:03]} b6 {[%emt 0:00:20]} 7. Bd3 {[%emt 0:00:29]} c5 {[%emt 0:00:22]} 8. cxd5 {[%emt 0:00:10]} Nxd5 {[%emt 0:00:13]} 9. Nxd5 {[%emt 0:00:09]} exd5 {[%emt 0:00:10]} 10. Qc2 {[%emt 0:03:07] D37: Queen's Gambit Declined: 5 Bf4} (10. O-O c4 11. Bb1 Nc6 12. b3 Be6 13. bxc4 dxc4 14. Qa4 Qd7 15. Qb5 f5 16. Rc1 Qd5 17. a4 Na5 {0-1 (38) Fedoseev,V (2724)-Friedel,J (2562) chess.com INT 2018}) 10... h6 {[%emt 0:00:57]} 11. O-O {[%emt 0:01:59]} c4 {[%emt 0:00:38]} ({Black should try} 11... Nc6 $11) 12. Bh7+ {[%emt 0:02:45]} (12. Bxc4 $5 dxc4 13. Qe4 $16) 12... Kh8 {[%emt 0:00:09]} 13. Bf5 $146 {[%emt 0:03:58]} ({Predecessor:} 13. Ne5 Qe8 14. Bf5 Nc6 15. Rfd1 Bf6 {½-½ (63) Koziej,M (2075)-Weglarz,J (2006) Rewal 2009}) 13... Nc6 {[%emt 0:00:37]} 14. Ne5 {[%emt 0:04:27]} Nxe5 {[%emt 0:01:36]} 15. dxe5 {[%emt 0:00:23]} Bxf5 {[%emt 0:01:52]} 16. Qxf5 {[%emt 0:00:02]} Qc8 {[%emt 0:00:15]} 17. Qh5 {[%emt 0:01:20]} Qe6 {[%emt 0:01:11]} 18. Bg3 {[%emt 0:04:10]} Bc5 {[%emt 0:09:23]} 19. Rad1 {[%emt 0:05:29]} Rad8 {[%emt 0:05:08]} 20. Kh1 {[%emt 0:09:34]} f6 {[%emt 0:29:25]} 21. Bh4 {[%emt 0:20:46]} Be7 {[%emt 0:07:04]} 22. exf6 {[%emt 0:00:29]} Bxf6 {[%emt 0:00:35]} 23. Bxf6 {[%emt 0:00:39]} Rxf6 {[%emt 0:03:38]} 24. Kg1 {[%emt 0:06:34]} Rf5 {[%emt 0:03:49]} 25. Qg4 {[%emt 0:00:58]} Rdf8 {[%emt 0:02:12]} 26. Qd4 {[%emt 0:00:39]} Kg8 {[%emt 0:01:54]} 27. f4 {[%emt 0:05:30]} Re8 {[%emt 0:02:14]} 28. Rf3 {[%emt 0:00:40]} Qe4 {[%emt 0:02:58]} 29. Qxe4 {[%emt 0:00:55]} dxe4 {[%emt 0:00:08]} 30. Rf2 {[%emt 0:00:05]} Ra5 {[%emt 0:00:31]} 31. a3 {[%emt 0:01:01]} c3 {[%emt 0:00:53]} 32. Rd7 {[%emt 0:02:23]} cxb2 {[%emt 0:09:23]} 33. Rxb2 {[%emt 0:00:02]} Rc8 $11 {[%emt 0:00:18]} 34. Re7 {[%emt 0:04:50]} Rxa3 {[%emt 0:09:11]} 35. Rxe4 {[%emt 0:00:07]} Rac3 {[%emt 0:00:14]} 36. h3 {[%emt 0:01:28]} Rc2 {[%emt 0:00:19]} 37. Rxc2 {[%emt 0:00:16]} Rxc2 {[%emt 0:00:01]} 38. Re8+ {[%emt 0:00:06]} Kf7 {[%emt 0:00:22]} 39. Rb8 {[%emt 0:00:05]} Ra2 {[%emt 0:01:19]} 40. Rb7+ {[%emt 0:02:22]} Kf6 {[%emt 0:00:43]} 41. e4 {[%emt 0:31:02]} Ra4 {[%emt 0:30:11]} 42. e5+ {[%emt 0:00:30]} Ke6 {[%emt 0:00:00]} 43. Rxg7 {[%emt 0:00:00]} Rxf4 {[%emt 0:00:00]} 44. Rxa7 {[%emt 0:00:00]} Kxe5 {[%emt 0:00:00]} 45. Rb7 {[%emt 0:00:00]} Rf6 {[%emt 0:00:00]} 46. Kh2 {[%emt 0:00:00]} Kf4 {[%emt 0:00:00]} 47. g4 {[%emt 0:00:00]} Rc6 {[%emt 0:00:00]} 48. Rf7+ {[%emt 0:00:00]} Ke5 {[%emt 0:00:00]} 49. Kg3 {[%emt 0:00:00]} Kd4 {[%emt 0:00:00]} 50. h4 {[%emt 0:00:00]} b5 {[%emt 0:00:00]} 51. g5 {[%emt 0:00:00]} b4 {[%emt 0:00:00]} 52. Kg4 {[%emt 0:00:00]} hxg5 {[%emt 0:00:00]} 53. hxg5 {[%emt 0:00:00]} b3 {[%emt 0:00:00]} 54. Kh5 {[%emt 0:00:00]} Rb6 {[%emt 0:00:00]} 55. Rf1 {[%emt 0:00:00]} b2 {[%emt 0:00:00]} 56. Rb1 {[%emt 0:00:00]} Ke5 {[%emt 0:00:00]} 57. g6 {[%emt 0:00:00]} Kf6 {[%emt 0:00:00]} 58. Kh6 {[%emt 0:00:00]} Rb3 {[%emt 0:00:00]} 59. Rf1+ {[%emt 0:00:00]} Ke5 {[%emt 0:00:00]} 60. g7 {[%emt 0:00:00]} b1=Q {[%emt 0:00:00]} 61. Rxb1 {[%emt 0:00:00]} Rxb1 {[%emt 0:00:00]} 62. g8=Q {[%emt 0:00:00]} Rh1+ {[%emt 0:00:00]} 63. Kg7 {[%emt 0:00:00]} Rg1+ {[%emt 0:00:00]} 64. Kf7 {[%emt 0:00:00]} Rxg8 65. Kxg8 1/2-1/2

[Event "18th Brasschaat Open 2018"]
[Site "Brasschaat"]
[Date "2018.08.24"]
[Round "7"]
[White "Draftian, Ashote"]
[Black "Van Dijck, Bjarne"]
[Result "1/2-1/2"]
[ECO "A03"]
[WhiteElo "2247"]
[BlackElo "1932"]
[Annotator "NA"]
[PlyCount "88"]
[EventDate "2018.08.18"]
[EventType "swiss"]
[EventCountry "BEL"]
[SourceTitle "playchess.com"]
[Source "ChessBase"]
[SourceQuality "1"]
[TimeControl "40/5400+30:1800+30"]

1. d4 {[%emt 0:00:04]} Nf6 {[%emt 0:00:00]} 2. e3 {[%emt 0:00:08]} g6 {[%emt 0:01:56]} 3. f4 {[%emt 0:02:09]} d5 {[%emt 0:00:28]} 4. Bd3 {[%emt 0:00:18]} Bg7 {[%emt 0:02:51]} 5. Nf3 {[%emt 0:00:25]} O-O {[%emt 0:03:33]} 6. O-O {[%emt 0:00:49]} c5 {[%emt 0:01:04]} 7. c3 {[%emt 0:01:43]} b6 {[%emt 0:04:55]} 8. Qe2 {[%emt 0:05:24]} Bb7 {[%emt 0:10:10]} 9. Nbd2 {[%emt 0:01:37]} Nbd7 {[%emt 0:03:28] LiveBook: 3 Games A03: Bird's Opening with 1...d5} (9... Nc6 10. b3 cxd4 11. exd4 Ne8 12. Ba3 Nd6 13. Rac1 Re8 14. Ne5 e6 15. Rfe1 Nf5 16. Qf2 a6 17. Ndf3 {0-1 (32) Evdokimov,A (2551)-Pavlov,M (2364) Odessa 2010}) 10. Ng5 {[%emt 0:07:50]} e6 {[%emt 0:16:05]} 11. Qf3 {[%emt 0:17:15]} Qc8 $146 {[%emt 0:05:35]} ({Predecessor:} 11... Qe7 12. Nh3 Ne8 13. a4 Nd6 14. a5 b5 15. a6 Bc6 16. Qe2 Rab8 17. Nf2 {½-½ (74) Mihut,I (2222)-Somogyi,I (2261) Hungary 2003}) 12. Re1 {[%emt 0:07:01]} Qc6 {[%emt 0:12:43]} 13. g4 {[%emt 0:12:52]} h6 {[%emt 0:06:57]} 14. Nh3 {[%emt 0:00:32]} Ne4 {[%emt 0:00:51]} 15. Qg2 {[%emt 0:01:00]} b5 {[%emt 0:14:16]} 16. Nxe4 {[%emt 0:06:54]} dxe4 {[%emt 0:00:07]} 17. Bf1 {[%emt 0:00:25]} f5 {[%emt 0:01:57]} 18. Bd2 {[%emt 0:03:21]} Rac8 $15 {[%emt 0:03:19]} 19. Rac1 {[%emt 0:12:20]} Kh7 {[%emt 0:00:09]} 20. Be2 {[%emt 0:03:11]} Nb6 {[%emt 0:01:50]} 21. b3 {[%emt 0:02:09]} Qd7 {[%emt 0:03:50]} 22. Qg3 {[%emt 0:03:07]} b4 {[%emt 0:02:10]} 23. Rcd1 {[%emt 0:04:35]} cxd4 {[%emt 0:01:40]} 24. cxd4 {[%emt 0:00:33]} a5 {[%emt 0:00:41]} 25. gxf5 {[%emt 0:02:05]} exf5 {[%emt 0:00:12]} 26. Rc1 {[%emt 0:02:07]} Bc6 {[%emt 0:01:33]} 27. Rc5 {[%emt 0:00:59]} a4 {[%emt 0:00:31]} 28. Bxb4 {[%emt 0:00:58]} Nd5 {[%emt 0:00:27]} 29. Rxd5 {[%emt 0:00:30]} Bxd5 {[%emt 0:00:22]} 30. Bxf8 {[%emt 0:00:15]} Bxf8 {[%emt 0:00:10]} 31. bxa4 {[%emt 0:01:12]} Qxa4 {[%emt 0:00:21]} 32. Kf2 {[%emt 0:01:09]} Qxa2 {[%emt 0:00:27]} 33. Ng1 {[%emt 0:00:46]} Rc2 {[%emt 0:00:38]} 34. Kf1 {[%emt 0:00:18]} Bb4 {[%emt 0:00:47]} 35. Rd1 {[%emt 0:00:27]} Bc4 {[%emt 0:00:37]} 36. Qf2 {[%emt 0:00:39]} Bd3 {[%emt 0:00:37]} 37. h4 {[%emt 0:00:22]} Qb2 {[%emt 0:00:35]} 38. h5 {[%emt 0:00:17]} gxh5 {[%emt 0:00:07]} 39. d5 {[%emt 0:00:41]} h4 {[%emt 0:00:20]} 40. Qg2 {[%emt 0:00:26]} h3 {[%emt 0:00:26]} 41. Qxh3 {[%emt 0:30:15]} Rxe2 {[%emt 0:27:02]} 42. Qxf5+ {[%emt 0:00:00]} Kh8 {[%emt 0:00:07]} 43. Qc8+ {[%emt 0:00:00]} Kh7 {[%emt 0:00:06]} 44. Qf5+ {[%emt 0:00:00]} Kh8 {[%emt 0:00:05]} 1/2-1/2

[Event "18th Brasschaat Open 2018"]
[Site "Brasschaat"]
[Date "2018.08.24"]
[Round "7"]
[White "Dauw, Sterre"]
[Black "De Bock, Thijs"]
[Result "1-0"]
[ECO "B15"]
[WhiteElo "2192"]
[BlackElo "1959"]
[Annotator "NA"]
[PlyCount "53"]
[EventDate "2018.08.18"]
[EventType "swiss"]
[EventCountry "BEL"]
[SourceTitle "playchess.com"]
[Source "ChessBase"]
[SourceQuality "1"]
[TimeControl "40/5400+30:1800+30"]

1. e4 {[%emt 0:00:22]} g6 {[%emt 0:00:00]} 2. d4 {[%emt 0:00:12]} Bg7 {[%emt 0:00:00]} 3. Nc3 {[%emt 0:00:04]} c6 {[%emt 0:00:00]} 4. h3 {[%emt 0:00:22]} d5 {[%emt 0:00:00]} 5. e5 {[%emt 0:00:17]} c5 {[%emt 0:02:56] B15: Caro-Kann: 3 Nc3: 3...g6 and 3...dxe4 4 Nxe4 Nf6 5 Nxf6+ exf6} 6. f4 {[%emt 0:07:45]} e6 $146 {[%emt 0:06:26]} ({Predecessor:} 6... cxd4 7. Qxd4 e6 8. Nf3 Nc6 9. Qf2 Nge7 10. Be3 O-O 11. g4 f6 12. exf6 Bxf6 13. O-O-O Bxc3 14. bxc3 {0-1 (29) De Firmian,N (2570)-Speelman,J (2630) Brussels 1992}) 7. dxc5 {[%emt 0:08:54]} ({Günstiger ist} 7. Nf3 $16) 7... Qh4+ {[%emt 0:01:38]} 8. Ke2 {[%emt 0:01:26]} b6 {[%emt 0:07:24]} 9. Nf3 {[%emt 0:03:51]} Ba6+ {[%emt 0:02:52]} 10. Ke3 {[%emt 0:03:49]} Qg3 $2 {[%emt 0:02:35]} (10... Qd8 $16 {is a better chance.}) 11. Bxa6 {[%emt 0:08:01]} Nxa6 {[%emt 0:02:21]} 12. Ne2 {[%emt 0:05:26]} d4+ {[%emt 0:05:37]} 13. Qxd4 {[%emt 0:00:53]} Qxg2 {[%emt 0:00:11]} 14. Rg1 {[%emt 0:00:38]} Qxh3 {[%emt 0:00:15]} 15. Qa4+ {[%emt 0:00:22]} Kf8 {[%emt 0:00:10]} 16. Qxa6 {[%emt 0:00:04]} bxc5 {[%emt 0:06:43]} 17. Qc6 {[%emt 0:01:48]} Rd8 {[%emt 0:00:04]} 18. Qxc5+ {[%emt 0:00:39]} Ne7 {[%emt 0:00:02]} 19. b3 {[%emt 0:03:57]} Rd5 {[%emt 0:02:30]} 20. Qxa7 {[%emt 0:02:40]} Kg8 {[%emt 0:00:03]} 21. Ba3 {[%emt 0:03:39]} Nf5+ {[%emt 0:02:48]} 22. Kf2 {[%emt 0:00:08]} Bh6 {[%emt 0:00:51]} 23. Rh1 {[%emt 0:00:33]} Qg4 {[%emt 0:00:45]} 24. Rag1 {[%emt 0:00:29]} Ng3 {[%emt 0:00:05]} 25. Rxg3 {[%emt 0:00:36]} Qf5 {[%emt 0:00:09]} 26. Rxh6 {[%emt 0:01:23]} Kg7 {[%emt 0:00:09]} 27. Rh1 $18 {[%emt 0:01:29]} 1-0

[Event "18th Brasschaat Open 2018"]
[Site "Brasschaat"]
[Date "2018.08.24"]
[Round "7"]
[White "Den Hartog, Marijn"]
[Black "Pirard, Natan"]
[Result "1-0"]
[ECO "C00"]
[WhiteElo "2118"]
[BlackElo "2067"]
[Annotator "NA"]
[PlyCount "67"]
[EventDate "2018.08.18"]
[EventType "swiss"]
[EventCountry "BEL"]
[SourceTitle "playchess.com"]
[Source "ChessBase"]
[SourceQuality "1"]
[TimeControl "40/5400+30:1800+30"]

1. Nf3 {[%emt 0:00:00]} Nf6 {[%emt 0:00:06]} 2. g3 {[%emt 0:00:00]} d5 {[%emt 0:00:06]} 3. Bg2 {[%emt 0:00:00]} e6 {[%emt 0:00:18]} 4. O-O {[%emt 0:00:05]} Be7 {[%emt 0:00:05]} 5. d3 {[%emt 0:00:46]} c5 {[%emt 0:01:02]} 6. Nbd2 {[%emt 0:00:18]} Nc6 {[%emt 0:00:35]} 7. e4 {[%emt 0:00:53]} O-O {[%emt 0:04:51]} 8. Re1 {[%emt 0:00:39]} Qc7 {[%emt 0:02:42]} 9. c3 {[%emt 0:00:37]} Rb8 {[%emt 0:13:01] C00: French: Unusual White 2nd moves} (9... b6 10. e5 Nd7 11. Qe2 a5 12. Nf1 a4 13. Bf4 Bb7 14. h4 Rfc8 15. Ne3 Qd8 16. h5 b5 17. Nxd5 exd5 18. e6 Nf8 19. exf7+ Kxf7 {0-1 (37) Morozevich,A (2675)-Hou,Y (2666) Biel 2017 CBM 180 [Sumets,A]}) 10. e5 {[%emt 0:11:28]} Nd7 {[%emt 0:00:49]} 11. Qe2 {[%emt 0:00:03]} b5 {[%emt 0:06:37]} 12. Nf1 {[%emt 0:03:52]} c4 {[%emt 0:08:22]} 13. d4 {[%emt 0:01:48]} b4 {[%emt 0:00:57]} 14. h4 {[%emt 0:13:03]} bxc3 {[%emt 0:01:49]} 15. bxc3 {[%emt 0:00:03]} Qa5 {[%emt 0:02:51]} 16. Qc2 {[%emt 0:02:07]} f6 $146 {[%emt 0:03:36]} ({Predecessor:} 16... h6 17. N1h2 Nb6 18. Rb1 Bd7 19. Ng4 {0-1 (58) Beridze,T (1903)-Vazirova,K (2098) Urgup 2004}) 17. exf6 {[%emt 0:01:36]} Nxf6 {[%emt 0:01:15]} 18. Bf4 {[%emt 0:02:48]} Rb7 {[%emt 0:05:36]} 19. Ng5 {[%emt 0:11:39]} Ba3 {[%emt 0:03:22]} 20. Nxe6 {[%emt 0:03:04]} Rb2 {[%emt 0:05:33]} 21. Qd1 {[%emt 0:00:19]} Re8 {[%emt 0:12:37]} 22. Nc7 {[%emt 0:20:30]} Rd8 {[%emt 0:01:35] [#]} 23. Ne3 $18 {[%emt 0:06:33]} Ne7 {[%emt 0:13:39]} 24. Be5 {[%emt 0:06:58]} Rf8 {[%emt 0:03:57]} 25. Rf1 {[%emt 0:06:48]} Qxc3 {[%emt 0:04:13]} 26. Ncxd5 {[%emt 0:04:59]} Nfxd5 {[%emt 0:02:25]} 27. Nxd5 {[%emt 0:00:05]} Nxd5 {[%emt 0:00:50]} 28. Bxd5+ {[%emt 0:00:03]} Kh8 {[%emt 0:00:03]} 29. Qh5 {[%emt 0:00:23]} Rbxf2 {[%emt 0:00:36]} 30. Bxg7+ {[%emt 0:00:39]} Kxg7 {[%emt 0:00:01]} 31. Qg5+ {[%emt 0:00:05]} Kh8 {[%emt 0:00:05]} 32. Qe5+ {[%emt 0:00:04]} R2f6 {[%emt 0:00:41]} 33. Rxf6 {[%emt 0:00:08]} Qxa1+ {[%emt 0:01:06]} 34. Rf1+ {[%emt 0:00:04]} 1-0

[Event "18th Brasschaat Open 2018"]
[Site "Brasschaat"]
[Date "2018.08.24"]
[Round "7"]
[White "Mitran, Anthony Cristian"]
[Black "Sadkowski, Daniel"]
[Result "0-1"]
[ECO "A04"]
[WhiteElo "2096"]
[BlackElo "2235"]
[Annotator "NA"]
[PlyCount "90"]
[EventDate "2018.08.18"]
[EventType "swiss"]
[EventCountry "BEL"]
[SourceTitle "playchess.com"]
[Source "ChessBase"]
[SourceQuality "1"]
[TimeControl "40/5400+30:1800+30"]

1. Nf3 {[%emt 0:00:00]} c5 {[%emt 0:02:39]} 2. b3 {[%emt 0:00:04]} Nc6 {[%emt 0:08:10]} 3. Bb2 {[%emt 0:01:32]} Nf6 {[%emt 0:02:06]} 4. e3 {[%emt 0:00:33]} d6 {[%emt 0:00:41]} 5. d4 {[%emt 0:00:08]} cxd4 {[%emt 0:00:13] A04: Holländisches System ohne Übergang in andere Systeme} 6. exd4 {[%emt 0:00:09]} d5 {[%emt 0:00:08]} (6... Bg4 7. h3 Bh5 8. Be2 e6 9. O-O Be7 10. c4 d5 11. a3 dxc4 12. bxc4 O-O 13. Nbd2 {0-1 (30) Dzhumagaliev,Y (2400)-Ponkratov,P (2613) Riadh 2017}) 7. a3 {[%emt 0:08:35]} Bg4 {[%emt 0:01:25]} 8. Bd3 {[%emt 0:02:27]} e6 {[%emt 0:00:30]} 9. O-O {[%emt 0:01:09]} Be7 {[%emt 0:00:53]} 10. Nbd2 {[%emt 0:00:18]} O-O {[%emt 0:00:43]} 11. Qe1 {[%emt 0:00:10]} Bh5 $146 {[%emt 0:14:10]} ({Vorgänger:} 11... Qb6 12. Qe3 Rac8 13. Qf4 {0-1 (24) Graeber,R (2308)-Bartel,M Ruhrgebiet 1999}) 12. h3 {[%emt 0:10:37]} Bg6 {[%emt 0:03:21]} 13. Bxg6 {[%emt 0:01:55]} hxg6 {[%emt 0:00:04]} 14. Qe3 {[%emt 0:02:37]} b5 {[%emt 0:01:59]} 15. Ne1 {[%emt 0:01:49]} Nd7 {[%emt 0:09:48]} 16. Nd3 {[%emt 0:04:14]} Bf6 {[%emt 0:00:40]} 17. f4 {[%emt 0:02:06]} Rc8 {[%emt 0:00:35]} 18. Nf3 {[%emt 0:03:20]} Na5 {[%emt 0:01:54]} 19. Rac1 {[%emt 0:02:06]} Nb7 {[%emt 0:00:38]} 20. Nfe5 {[%emt 0:01:31]} Nd6 {[%emt 0:01:08]} 21. g4 {[%emt 0:04:00]} Ne4 {[%emt 0:01:01]} 22. Nf2 {[%emt 0:04:52]} Nxf2 {[%emt 0:02:52]} 23. Nxd7 {[%emt 0:14:13]} Nxg4 {[%emt 0:08:56]} 24. hxg4 {[%emt 0:00:20]} Qxd7 {[%emt 0:00:05]} 25. Rf2 {[%emt 0:03:38]} Be7 {[%emt 0:03:02]} 26. Rh2 {[%emt 0:04:58]} f5 {[%emt 0:00:29]} 27. Re1 {[%emt 0:04:47]} Kf7 {[%emt 0:01:33]} 28. gxf5 $17 {[%emt 0:07:09]} exf5 {[%emt 0:00:56]} 29. Rg2 {[%emt 0:04:36]} Bh4 {[%emt 0:01:32]} 30. Ree2 {[%emt 0:03:31]} Rce8 {[%emt 0:09:36]} 31. Qf3 {[%emt 0:00:09]} Re4 {[%emt 0:00:18]} 32. c4 {[%emt 0:00:49]} bxc4 {[%emt 0:00:59]} 33. bxc4 {[%emt 0:00:01]} Rfe8 {[%emt 0:00:18]} 34. c5 {[%emt 0:04:31]} Qb5 {[%emt 0:01:29]} 35. Rxe4 {[%emt 0:01:12]} Rxe4 {[%emt 0:00:11]} 36. Rc2 {[%emt 0:00:36]} Bd8 {[%emt 0:03:10]} 37. Qf2 {[%emt 0:02:15]} Bc7 {[%emt 0:01:58]} 38. Bc1 {[%emt 0:00:07]} Qd3 {[%emt 0:06:40]} 39. Rb2 {[%emt 0:00:00]} Qd1+ {[%emt 0:00:36]} 40. Kg2 {[%emt 0:00:33]} Qxc1 {[%emt 0:00:24]} 41. Rb7 {[%emt 0:30:11]} Re7 {[%emt 0:30:10]} 42. Qa2 {[%emt 0:00:31]} Qxf4 {[%emt 0:10:58]} 43. Qxd5+ {[%emt 0:01:14]} Kf6 {[%emt 0:00:41]} 44. Qf3 {[%emt 0:00:00]} Qd2+ {[%emt 0:00:00]} 45. Kh3 {[%emt 0:00:00]} Qh2# {[%emt 0:02:51]} 0-1

[Event "18th Brasschaat Open 2018"]
[Site "Brasschaat"]
[Date "2018.08.24"]
[Round "7"]
[White "Oudewaal, Vincent"]
[Black "Vande Velde, Erik"]
[Result "1-0"]
[ECO "A11"]
[WhiteElo "2070"]
[BlackElo "1921"]
[Annotator "NA"]
[PlyCount "61"]
[EventDate "2018.08.18"]
[EventType "swiss"]
[EventCountry "BEL"]
[SourceTitle "playchess.com"]
[Source "ChessBase"]
[SourceQuality "1"]
[TimeControl "40/5400+30:1800+30"]

1. c4 {[%emt 0:00:00]} c6 {[%emt 0:00:00]} 2. g3 {[%emt 0:00:00]} d5 {[%emt 0:00:00]} 3. Bg2 {[%emt 0:00:00]} Nf6 {[%emt 0:00:00]} 4. Nf3 {[%emt 0:00:00]} Bf5 {[%emt 0:00:09]} 5. cxd5 {[%emt 0:00:29]} cxd5 {[%emt 0:00:16]} 6. Qb3 {[%emt 0:00:09]} Nc6 {[%emt 0:00:19] A11: English Opening: 1...c6} 7. Qxb7 {[%emt 0:01:59]} Bd7 {[%emt 0:00:13]} 8. Qb3 {[%emt 0:04:26]} e5 {[%emt 0:00:15]} 9. d3 {[%emt 0:06:15] LiveBook: 15 Games} (9. O-O e4 10. Ne1 Rb8 11. Qd1 h5 12. d3 h4 13. Bf4 hxg3 14. Bxg3 {½-½ (23) Artemiev,V (2697)-Petrosian,T (2589) Moscow 2018}) 9... Rb8 {[%emt 0:00:12]} 10. Qd1 {[%emt 0:01:07]} Bb4+ {[%emt 0:00:21]} 11. Nfd2 {[%emt 0:03:08]} Qc8 {[%emt 0:01:29]} 12. a3 {[%emt 0:12:38]} Nd4 {[%emt 0:14:54]} 13. O-O {[%emt 0:01:49]} Ba5 $146 {[%emt 0:15:05]} ({Predecessor:} 13... Qxc1 14. axb4 Qxd1 15. Rxd1 Nxe2+ {0-1 (44) Carlsson,L (2096)-Jogstad,M (2283) Uppsala 2017}) 14. b4 {[%emt 0:06:08]} Bb6 {[%emt 0:02:08]} 15. Bb2 {[%emt 0:05:40]} Bg4 {[%emt 0:14:27]} 16. Nc3 {[%emt 0:04:04]} h5 {[%emt 0:01:23]} 17. Nf3 {[%emt 0:13:59]} Nxf3+ {[%emt 0:03:39]} 18. exf3 {[%emt 0:01:13]} Bd7 {[%emt 0:12:53]} 19. Na4 {[%emt 0:02:18]} Bd4 {[%emt 0:03:29]} 20. Bxd4 {[%emt 0:00:09]} exd4 {[%emt 0:00:07]} 21. Re1+ {[%emt 0:00:13]} Kf8 {[%emt 0:01:43]} 22. Rc1 {[%emt 0:00:35]} Qa6 {[%emt 0:06:45]} 23. Nc5 {[%emt 0:00:06]} Qd6 {[%emt 0:00:42]} 24. Nxd7+ {[%emt 0:00:32]} Qxd7 $18 {[%emt 0:01:42]} 25. Qd2 {[%emt 0:01:15]} h4 {[%emt 0:02:28]} 26. Qf4 {[%emt 0:00:06]} Re8 {[%emt 0:05:38]} 27. Rxe8+ {[%emt 0:04:32]} Nxe8 {[%emt 0:01:01]} 28. Qxd4 {[%emt 0:00:21]} Rh6 {[%emt 0:01:38]} 29. f4 {[%emt 0:00:46]} hxg3 {[%emt 0:01:08]} 30. hxg3 {[%emt 0:00:09]} Nf6 {[%emt 0:03:16]} 31. Qc5+ {[%emt 0:00:07]} 1-0

[Event "18th Brasschaat Open 2018"]
[Site "Brasschaat"]
[Date "2018.08.24"]
[Round "7"]
[White "Sikkel, Dirk"]
[Black "Naalden, Marc"]
[Result "0-1"]
[ECO "C68"]
[WhiteElo "1973"]
[BlackElo "1860"]
[Annotator "NA"]
[PlyCount "82"]
[EventDate "2018.08.18"]
[EventType "swiss"]
[EventCountry "BEL"]
[SourceTitle "playchess.com"]
[Source "ChessBase"]
[SourceQuality "1"]
[TimeControl "40/5400+30:1800+30"]

1. e4 {[%emt 0:00:00]} e5 {[%emt 0:00:00]} 2. Nf3 {[%emt 0:00:00]} Nc6 {[%emt 0:00:00]} 3. Bb5 {[%emt 0:00:00]} a6 {[%emt 0:00:00]} 4. Bxc6 {[%emt 0:00:06]} dxc6 {[%emt 0:00:12]} 5. O-O {[%emt 0:00:17]} Bg4 {[%emt 0:00:11]} 6. h3 {[%emt 0:00:21]} h5 {[%emt 0:00:11]} 7. d3 {[%emt 0:00:45]} Qf6 {[%emt 0:00:13]} 8. Nbd2 {[%emt 0:00:52]} g5 {[%emt 0:00:25]} 9. Nc4 {[%emt 0:03:43] C68: Ruy Lopez: Exchange Variation, sidelines} Bxf3 {[%emt 0:00:14]} 10. Qxf3 {[%emt 0:00:35]} Qxf3 {[%emt 0:00:09]} 11. gxf3 {[%emt 0:00:09] LiveBook: 35 Games} f6 {[%emt 0:00:08]} 12. Be3 {[%emt 0:07:51]} (12. Rd1 Ne7 13. Ne3 {½-½ (13) Solak,D (2635)-Sethuraman,S (2640) Kragujevac 2016}) 12... O-O-O {[%emt 0:04:35]} 13. Rad1 {[%emt 0:02:13]} Ne7 $146 {[%emt 0:05:09]} ({Predecessor:} 13... Rh7 14. Kh2 Nh6 15. h4 Nf7 16. hxg5 fxg5 {½-½ (43) Rosner,D (2180)-De Souza,A (2144) GER email 2006}) 14. d4 {[%emt 0:02:30]} Ng6 {[%emt 0:01:46]} 15. dxe5 {[%emt 0:13:17]} Rxd1 {[%emt 0:00:16]} 16. Rxd1 {[%emt 0:00:08]} b5 {[%emt 0:00:10]} 17. Na5 {[%emt 0:01:48]} Nxe5 {[%emt 0:00:31]} 18. Kg2 {[%emt 0:00:46]} Bd6 {[%emt 0:04:52]} 19. c3 {[%emt 0:12:01]} Ng6 {[%emt 0:05:45]} 20. Kf1 {[%emt 0:04:16]} c5 {[%emt 0:04:17]} 21. Nb3 {[%emt 0:01:09]} c4 {[%emt 0:02:51]} 22. Nc1 {[%emt 0:03:05]} (22. Nd4 $11) 22... Rd8 {[%emt 0:05:50]} 23. Ke1 {[%emt 0:11:48]} Bf4 {[%emt 0:03:25]} 24. Rxd8+ {[%emt 0:10:06]} Kxd8 {[%emt 0:00:06]} 25. Kd2 {[%emt 0:04:01]} Bd6 {[%emt 0:05:02]} 26. Ne2 {[%emt 0:04:59]} c5 {[%emt 0:00:15]} 27. Kc2 {[%emt 0:03:40]} h4 {[%emt 0:03:02]} 28. Ng1 {[%emt 0:02:42]} Kd7 {[%emt 0:00:48]} 29. Kd2 {[%emt 0:00:21]} Kc6 {[%emt 0:00:36]} 30. Ne2 {[%emt 0:01:30]} a5 {[%emt 0:00:45]} 31. Kc2 {[%emt 0:00:39]} Be5 {[%emt 0:02:04]} 32. a3 {[%emt 0:00:33]} Bh2 {[%emt 0:03:19]} 33. Kd2 {[%emt 0:03:33]} b4 {[%emt 0:02:01]} 34. axb4 {[%emt 0:00:24]} cxb4 {[%emt 0:00:18]} 35. Nd4+ {[%emt 0:01:48]} Kd7 {[%emt 0:00:22]} 36. cxb4 {[%emt 0:02:31]} axb4 {[%emt 0:00:10]} 37. Kc2 {[%emt 0:00:54]} Be5 {[%emt 0:00:29]} 38. Ne2 {[%emt 0:01:37]} Kc6 $17 {[%emt 0:00:22]} (38... b3+ $19 39. Kb1 Bd6) 39. Bd2 {[%emt 0:01:11]} b3+ {[%emt 0:00:46]} 40. Kd1 {[%emt 0:00:55]} Bxb2 {[%emt 0:00:22]} 41. f4 {[%emt 0:30:31]} Nxf4 {[%emt 0:31:23]} 0-1